Cogmind - Beta 13 @@@ ROGUE MODE // 2024.04.22 @ 07:30:05 Player: Oldman Pu Result: Self-destructed Performance ------------- Evolutions (3) 1500 Regions Visited (6) 1200 Robots Destroyed (48) 240 Value Destroyed (1293) 1293 Prototype IDs (3) 60 Alien Tech Used (0) 0 Bonus (21) 21 TOTAL SCORE: 4314 Bonus ------- Follower Combat Kills 21 Cogmind --------- Core Integrity 305/700 Matter 40/300 Energy 65/100 System Corruption 21% Temperature Cool (0) Movement Core (50) Location -7/Factory Parts ------- > --- POWER (2) -------- (None) > --- PROPULSION (3) --- (None) > --- UTILITY (5) ------ Scrap Engine Improved Heat Sink (fused) > --- WEAPON (3) ------- (None) > --- INVENTORY (5) ---- Improved Medium Armor Plating Improved Medium Armor Plating Hardlight Generator Peak State ------------ > --- POWER ------------ Heavy Ion Engine Light Nuclear Core > --- PROPULSION ------- Wheel Subdweller Monowheel > --- UTILITY ---------- Scrap Engine Improved Heat Sink Improved Medium Armor Plating V3-11A's Pendant > --- WEAPON ----------- Plasma Cannon Light Assault Rifle Advanced Assault Cannon > --- INVENTORY -------- Improved Medium Armor Plating Improved Medium Armor Plating Hardlight Generator Advanced Assault Cannon Advanced Assault Cannon [Rating: 45] Favorites ----------- Power Heavy Ion Engine Engine Heavy Ion Engine Power Core Light Nuclear Core Propulsion Compact Wheel Treads Light Treads Wheel Compact Wheel Utility High-capacity Storage Unit Device Scrap Engine Storage High-capacity Storage Unit Processor Targeting Computer Protection Propulsion Shielding Weapon Assault Rifle Energy Gun Medium Laser Energy Cannon Plasma Cannon Ballistic Gun Assault Rifle Ballistic Cannon Advanced Assault Cannon Build | -11 -10 -10 -9 -7 -7 -7 ------- Run | Yrd Mat Sub Rec Fac Was Fac Slots Evolved 6 | . . . . 6 . . Power 1 | . . . . 1 . . Propulsion 1 | . . . . 1 . . Utility 3 | . . . . 3 . . Weapon 1 | . . . . 1 . . Parts Attached 64 | 7 15 11 4 7 1 19 Power 10 | 1 5 . . 1 . 3 Engine 7 | 1 4 . . 1 . 1 Core 3 | . 1 . . . . 2 Reactor . | . . . . . . . Propulsion 12 | 2 2 3 1 1 . 3 Treads 1 | . . . . . . 1 Leg . | . . . . . . . Wheel 11 | 2 2 3 1 1 . 2 Hover . | . . . . . . . Flight . | . . . . . . . Utility 21 | 1 4 4 2 4 1 5 Device 7 | . . 1 1 2 . 3 Storage 4 | 1 2 . . 1 . . Processor 1 | . 1 . . . . . Hackware . | . . . . . . . Protection 9 | . 1 3 1 1 1 2 Artifact . | . . . . . . . Weapon 21 | 3 4 4 1 1 . 8 Energy Gun 5 | 1 1 1 . 1 . 1 Energy Cannon 2 | . . . . . . 2 Ballistic Gun 11 | 2 3 3 1 . . 2 Ballistic Cannon 3 | . . . . . . 3 Launcher . | . . . . . . . Special Weapon . | . . . . . . . Impact Weapon . | . . . . . . . Slashing Weapon . | . . . . . . . Piercing Weapon . | . . . . . . . Special Melee Weapon . | . . . . . . . Unidentified Prototypes 3 | . 1 1 . . . 1 Parts Lost 24 | . 4 2 . . 2 16 Power 5 | . 1 . . . 1 3 Propulsion 7 | . 1 1 . . . 5 Utility 3 | . . 1 . . . 2 Weapon 9 | . 2 . . . 1 6 Highest Loss Streak 15 | . 2 1 . . 2 15 To Critical Strikes . | . . . . . . . Average Slot Usage (%) 90 | . 92 99 96 81 60 75 Engine 10 | . 9 14 14 15 9 6 Core 2 | . 4 . . . . 5 Wheel 22 | . 23 27 24 20 19 11 Device 5 | . . 3 . 12 15 21 Storage 11 | . 14 14 14 9 4 . Processor 1 | . 4 . . . . . Protection 8 | . 7 9 14 5 2 7 Energy Gun 5 | . 8 8 . 2 . . Energy Cannon 1 | . . . . . . 5 Ballistic Gun 17 | . 19 19 28 15 8 6 Ballistic Cannon 1 | . . . . . . 6 Naked Turns . | . . . . . . . Heaviest Build 95 | 13 95 55 54 70 63 37 Greatest Support 48 | 26 32 36 36 48 48 32 Greatest Overweight (x) 11 | . 5 3 3 2 1 11 Average Overweight (x) 1 | . 1 1 1 1 . . Largest Inventory Capacity 25 | 8 25 20 20 20 20 5 Average Capacity 17 | 6 20 20 20 20 14 5 Most Carried 20 | 1 20 20 20 17 17 5 Average Carried 12 | . 10 19 18 14 12 4 Final Capacity 20 | 8 20 20 20 20 5 5 Final Carried 20 | 1 20 20 17 17 5 3 Class Distribution -------------------- 79% | Mutant 12% | Tank 7% | Scavenger-Mutant Dominant Class ---------------- Mutant | -10/Materials Mutant | -10/Subcaves Mutant | -9/Recycling Mutant | -7/Factory Mutant | -7/Waste Tank | -7/Factory Resources | -11 -10 -10 -9 -7 -7 -7 ----------- Run | Yrd Mat Sub Rec Fac Was Fac Matter Collected 1431 | 178 545 310 46 . . 352 Remotely . | . . . . . . . Salvage Created 1557 | . 698 274 . . . 585 Parts 91 | . 43 16 . . . 32 Haulers Intercepted 4 | . 2 . . . . 2 Recyclers Shooed . | . . . . . . . Parts Field Recycled . | . . . . . . . Retrieved Matter . | . . . . . . . Parts Self-Destructed 15 | . . 15 . . . . Prevented . | . . . . . . . Kills | -11 -10 -10 -9 -7 -7 -7 ------- Run | Yrd Mat Sub Rec Fac Was Fac Combat Hostiles Destroyed 32 | . 13 6 . . . 13 Guns 19 | . 13 6 . . . . Cannons 8 | . . . . . . 8 AOE 4 | . . . . . . 4 Classes Destroyed 12 | . 5 2 . . . 5 Worker 3 | . . . . . . 3 Builder 2 | . . . . . . 2 Hauler 4 | . 2 . . . . 2 Recycler 3 | . 1 . . . . 2 Turret 2 | . . 2 . . . . Watcher 2 | . 2 . . . . . Swarmer 11 | . 3 2 . . . 6 Grunt 14 | . 10 . . . . 4 Sentry 1 | . . . . . . 1 Specialist 1 | . . . . . . 1 Programmer 1 | . . . . . . 1 Subdweller 4 | . . 4 . . . . Best Kill Streak 19 | . 3 2 . . . 19 Combat Bots Only 5 | . 3 2 . . . 5 Max Kills in Single Turn 7 | . 1 1 . . . 7 Gunslinging . | . . . . . . . Exploded 4 | . . . . . . 4 Melee . | . . . . . . . Uniques/NPCs Destroyed . | . . . . . . . Combat | -11 -10 -10 -9 -7 -7 -7 -------- Run | Yrd Mat Sub Rec Fac Was Fac Hostile Shots Fired 376 | . 59 89 . . 2 226 Missed 118 | . 15 28 . . . 75 Damage Taken 3409 | . 500 633 . . 79 2197 Core 628 | . 88 145 . . 34 361 Absorbed by Shields . | . . . . . . . Redirected to Shielding 20 | . . 11 . . . 9 Core Remaining (%) 53 | 100 . . 6 . . . Volleys Fired 163 | . 75 47 1 . . 40 Largest 3 | . 2 2 2 . . 3 Hottest 151 | . 85 80 43 . . 151 Shots Fired 338 | . 149 93 2 . . 94 Gun 277 | . 149 93 2 . . 33 Cannon 61 | . . . . . . 61 Launcher . | . . . . . . . Special . | . . . . . . . Kinetic 236 | . 83 74 2 . . 77 Thermal 102 | . 66 19 . . . 17 Explosive . | . . . . . . . Electromagnetic . | . . . . . . . Robot Hit Streak 21 | . 12 21 . . . 8 Robot Miss Streak 6 | . 5 5 . . . 6 Penetration Max . | . . . . . . . Secondary Targets 2 | . 2 . . . . . Max Gunslinging Chain 1 | . 1 . . . . . Shots Hit Robots 183 | . 97 33 . . . 53 Core Hits 78 | . 35 17 . . . 26 Critical Kills 1 | . . . . . . 1 Critical Parts Destroyed . | . . . . . . . Critical Strikes 6 | . 3 . . . . 3 Burn 3 | . 3 . . . . . Meltdown 1 | . . . . . . 1 Blast 2 | . . . . . . 2 Melee Attacks . | . . . . . . . Impact . | . . . . . . . Slashing . | . . . . . . . Piercing . | . . . . . . . Sneak Attacks . | . . . . . . . Combat Hostiles . | . . . . . . . Follow-up Attacks . | . . . . . . . Damage Inflicted 3800 | . 1045 502 . . . 2253 Guns 1748 | . 1045 502 . . . 201 Cannons 1029 | . . . . . . 1029 Explosions 1023 | . . . . . . 1023 Melee . | . . . . . . . Ramming . | . . . . . . . Kinetic 1842 | . 505 438 . . . 899 Thermal 935 | . 540 64 . . . 331 Explosive 1023 | . . . . . . 1023 Electromagnetic . | . . . . . . . Impact . | . . . . . . . Slashing . | . . . . . . . Piercing . | . . . . . . . Highest Corruption 21 | . . . . . 18 21 Average Corruption 17 | . . . . . 12 18 Corruption Purged . | . . . . . . . Corruption Blocked . | . . . . . . . Effects 40 | . . . . . 7 33 Message Errors 4 | . . . . . 1 3 Matter Fused 11 | . . . . . 3 8 Heat Flow Errors 3 | . . . . . . 3 Energy Discharges 3 | . . . . . 1 2 Parts Rejected 1 | . . . . . . 1 Parts Fused 2 | . . . . . . 2 Data Loss (minor) 7 | . . . . . . 7 Data Loss (major) 4 | . . . . . 2 2 Alerts 1 | . . . . . . 1 Misdirections 1 | . . . . . . 1 Weapon Failures 3 | . . . . . . 3 Overload Shots . | . . . . . . . Overflow Damage 186 | . . . . . . 186 Projectiles 13 | . . . . . . 13 Explosions 173 | . . . . . . 173 Melee . | . . . . . . . Knockbacks 8 | . . . . . . 8 Impact . | . . . . . . . Kinetic 7 | . . . . . . 7 Secondary 1 | . . . . . . 1 Self-Inflicted Damage 83 | . . . . . . 83 Shots 2 | . . . . . . 2 Rammed . | . . . . . . . Targets Rammed . | . . . . . . . Kicked . | . . . . . . . Crushed . | . . . . . . . Highest Temperature 272 | . 272 . . . . 233 Average Temperature 69 | . 73 . . . . 59 Received Heat Transfer 687 | . 240 264 . . . 183 Effects 2 | . 2 . . . . . Interference 2 | . 2 . . . . . Siege Activations . | . . . . . . . Robots Corrupted . | . . . . . . . Combat Hostiles . | . . . . . . . Parts Fried . | . . . . . . . Impact Corruptions . | . . . . . . . Robots Melted 1 | . . . . . . 1 Combat Hostiles 1 | . . . . . . 1 Parts Melted 9 | . 6 . . . . 3 Heat Transferred 2464 | . 1739 75 . . . 650 Parts Sabotaged . | . . . . . . . Parts Stolen . | . . . . . . . Parts Stripped . | . . . . . . . Power Chain Reactions . | . . . . . . . Alert | -11 -10 -10 -9 -7 -7 -7 ------- Run | Yrd Mat Sub Rec Fac Was Fac Peak Influence 419 | . 256 . 419 93 32 356 Initial 398 | . . . 398 93 32 18 Average 134 | . 81 . 336 93 27 98 Maximum Alert Level 2 | . 1 . 2 . . 1 Low Security (%) 69 | 100 88 . . 100 100 78 Level 1 23 | . 11 . 62 . . 21 Level 2 7 | . . . 37 . . . Level 3 . | . . . . . . . Level 4 . | . . . . . . . Level 5 . | . . . . . . . High Security . | . . . . . . . Max Security . | . . . . . . . Squads Dispatched 4 | . 3 . . . . 1 Investigation 3 | . 2 . . . . 1 Extermination . | . . . . . . . Reinforcement 1 | . 1 . . . . . Assault . | . . . . . . . Garrison . | . . . . . . . Intercept . | . . . . . . . Searches Triggered . | . . . . . . . Construction Impeded . | . . . . . . . Haulers Reinforced . | . . . . . . . Active Scanning Responses . | . . . . . . . Cargo Convoy Interrupts 1 | . . . . . . 1 Stealth | -11 -10 -10 -9 -7 -7 -7 --------- Run | Yrd Mat Sub Rec Fac Was Fac Distress Signals 2 | . 2 . . . . . Communications Jammed . | . . . . . . . Distress Signals . | . . . . . . . Times Spotted 104 | . 24 45 . . 6 29 Peak Tracking Total 10 | . 6 4 . . 6 10 Tactical Retreats 7 | . 1 4 . . 1 1 Traps | -11 -10 -10 -9 -7 -7 -7 ------- Run | Yrd Mat Sub Rec Fac Was Fac Traps Triggered 3 | . 1 . . 1 . 1 Indirectly . | . . . . . . . Trap Hack Attempts . | . . . . . . . Triggered . | . . . . . . . Disarmed . | . . . . . . . Reprogrammed . | . . . . . . . Reused . | . . . . . . . Traps Extracted . | . . . . . . . Installed . | . . . . . . . Triggered . | . . . . . . . Machines | -11 -10 -10 -9 -7 -7 -7 ---------- Run | Yrd Mat Sub Rec Fac Was Fac Machines Disabled 7 | . . 1 . . . 6 Max in Single Turn 2 | . . 1 . . . 2 Machines Repaired . | . . . . . . . Machines Dismantled . | . . . . . . . Machines Sabotaged . | . . . . . . . Overloaded Fab Kills . | . . . . . . . Hacking | -11 -10 -10 -9 -7 -7 -7 --------- Run | Yrd Mat Sub Rec Fac Was Fac Machines Accessed 16 | . 6 . 7 . . 3 Terminals 11 | . 5 . 4 . . 2 Fabricators . | . . . . . . . Repair Stations . | . . . . . . . Recycling Units 4 | . 1 . 3 . . . Scanalyzers 1 | . . . . . . 1 Garrison Access . | . . . . . . . Total Hacks 42 | . 23 . 13 . . 6 Successful 27 | . 16 . 8 . . 3 Failed 15 | . 7 . 5 . . 3 Catastrophic . | . . . . . . . Database Lockouts . | . . . . . . . Manual . | . . . . . . . Terminals 36 | . 22 . 10 . . 4 Fabricators . | . . . . . . . Repair Stations . | . . . . . . . Recycling Units 4 | . 1 . 3 . . . Scanalyzers 2 | . . . . . . 2 Garrison Access . | . . . . . . . Terminal Hacks 21 | . 15 . 5 . . 1 Record 8 | . 6 . 2 . . . Emergency Access Points 1 | . . . 1 . . . Terminal Index 1 | . 1 . . . . . Alert Level 4 | . 3 . . . . 1 Locate Traps 2 | . 2 . . . . . Surveillance Status 1 | . . . 1 . . . Transport Status 1 | . 1 . . . . . Hauler Manifests 2 | . 1 . 1 . . . Registered Components 1 | . 1 . . . . . Fabricator Hacks . | . . . . . . . Repair Station Hacks . | . . . . . . . Recycling Unit Hacks 4 | . 1 . 3 . . . Report Inventory 4 | . 1 . 3 . . . Scanalyzer 2 | . . . . . . 2 Insert Component 1 | . . . . . . 1 Analyze 1 | . . . . . . 1 Garrison Access Hacks . | . . . . . . . Unauthorized Hacks . | . . . . . . . Terminals . | . . . . . . . Fabricators . | . . . . . . . Repair Stations . | . . . . . . . Recycling Units . | . . . . . . . Scanalyzers . | . . . . . . . Garrison Access . | . . . . . . . Data Cores Recovered . | . . . . . . . Used . | . . . . . . . Hacking Detections 11 | . 5 . 4 . . 2 Full Trace Events 1 | . 1 . . . . . Feedback Events . | . . . . . . . Feedback Blocked . | . . . . . . . Robot Schematics Acquired . | . . . . . . . Robots Built . | . . . . . . . Authchips . | . . . . . . . Time . | . . . . . . . Total Robot Build Rating . | . . . . . . . Part Schematics Acquired 1 | . . . . . . 1 Parts Built . | . . . . . . . Authchips . | . . . . . . . Time . | . . . . . . . Total Part Build Rating . | . . . . . . . Parts Repaired . | . . . . . . . Time . | . . . . . . . Parts Recycled . | . . . . . . . Recycled Matter . | . . . . . . . Retrieved Matter . | . . . . . . . Retrieved Components . | . . . . . . . Parts Scanalyzed 1 | . . . . . . 1 Part Schematics Acquired 1 | . . . . . . 1 Parts Damaged . | . . . . . . . Bothacking | -11 -10 -10 -9 -7 -7 -7 ------------ Run | Yrd Mat Sub Rec Fac Was Fac Used RIF Installer . | . . . . . . . Robots Hacked . | . . . . . . . Non-combat . | . . . . . . . Combat . | . . . . . . . Robot Hacks Applied . | . . . . . . . Relay Couplers Released . | . . . . . . . Fabnet Peak Effective % . | . . . . . . . Robots Rewired . | . . . . . . . Allies Hacked . | . . . . . . . Hacks Repelled . | . . . . . . . Allies | -11 -10 -10 -9 -7 -7 -7 -------- Run | Yrd Mat Sub Rec Fac Was Fac Total Allies 1 | . . 1 . . . . Largest Group 1 | . . 1 . . . . Highest-Rated Group 19 | . . 19 . . . . Highest-Rated Ally 19 | . . 19 . . . . Total Orders . | . . . . . . . Ally Attacks 13 | . . 13 . . . . Total Damage 141 | . . 141 . . . . Kills 3 | . . 3 . . . . Allies Corrupted . | . . . . . . . Allies Melted . | . . . . . . . Intel | -11 -10 -10 -9 -7 -7 -7 ------- Run | Yrd Mat Sub Rec Fac Was Fac Robot Analysis Total . | . . . . . . . Derelict Logs Recovered . | . . . . . . . Drone Launches . | . . . . . . . Drone Recoveries . | . . . . . . . Exploration | -11 -10 -10 -9 -7 -7 -7 ------------- Run | Yrd Mat Sub Rec Fac Was Fac Turns Passed 3885 | 46 1495 783 645 62 163 691 Spaces Moved 2589 | 42 946 498 521 43 138 401 Core 11 | 8 . . . . . 3 Treads . | . . . . . . . Legs . | . . . . . . . Wheels 2578 | 34 946 498 521 43 138 398 Hover . | . . . . . . . Flight . | . . . . . . . Fastest Speed 50 | 50 90 115 110 113 100 95 Average Speed 118 | 82 126 115 119 116 106 109 Slowest Speed 600 | 90 175 145 145 125 113 600 Overloaded Moves . | . . . . . . . Propulsion Burnouts . | . . . . . . . Robots Hopped . | . . . . . . . Cave-ins Triggered . | . . . . . . . Exploration Rate (%) 44 | 3 99 34 94 2 66 11 Regions Visited 6 Branch Regions 2 Pre-discovered Areas . | . . . . . . . Known Exits Taken . | . . . . . . . Unknown Exits Taken 4 | 1 1 1 1 . . . Scrap Searched . | . . . . . . . Spaces Dug . | . . . . . . . Terrain Destroyed 36 | . . . . . . 36 Melee . | . . . . . . . Projectile 9 | . . . . . . 9 AOE 27 | . . . . . . 27 Terrain Rammed . | . . . . . . . Walls Destroyed . | . . . . . . . Machines Disabled . | . . . . . . . Actions | -11 -10 -10 -9 -7 -7 -7 --------- Run | Yrd Mat Sub Rec Fac Was Fac Total 3104 | 49 1108 613 545 58 153 578 Wait 222 | . 51 42 9 . 15 105 Move 2584 | 41 945 497 520 43 137 401 Hop . | . . . . . . . Pick Up 36 | 1 17 6 2 4 . 6 Fast Attach 29 | 6 7 4 1 . 1 10 Attach 15 | . 1 . 1 7 . 6 Detach 6 | . . 1 1 4 . . Swap 21 | 1 7 7 2 . . 4 Drop 28 | . 5 9 8 . . 6 Fire 163 | . 75 47 1 . . 40 Melee . | . . . . . . . Ram . | . . . . . . . Kick . | . . . . . . . Crush . | . . . . . . . Escape Stasis . | . . . . . . . Rewire . | . . . . . . . Trap . | . . . . . . . Miscellaneous . | . . . . . . . Route ------- -11/Scrapyard -10/Materials (discovered 6 exits: [*Mat x3] / [*Min x2] / [*Sub]) -10/Subcaves -9/Recycling -7/Factory -7/Waste -7/Factory History --------- Turn | Location | Event 9 | -11/Scrapyard | Discovered new exit (range 16) 47 | -11/Scrapyard | Entered Materials 260 | -10/Materials | Discovered new exit (range 3) 263 | -10/Materials | Discovered new exit (range 9) 306 | -10/Materials | Build established: Mutant 815 | -10/Materials | Discovered new exit (range 15) 868 | -10/Materials | Discovered new exit (range 6) 1042 | -10/Materials | Discovered new exit (range 12) 1387 | -10/Materials | Discovered new exit (range 7) 1542 | -10/Materials | Entered Subcaves 1552 | -10/Subcaves | Shifting Twisted Machinery released Sub. Monowheel 1583 | -10/Subcaves | Shifting Twisted Machinery released Sub. Laser 1584 | -10/Subcaves | Shifting Twisted Machinery released Piercing Trap 1585 | -10/Subcaves | Core integrity fell below 50% 1621 | -10/Subcaves | Shifting Twisted Machinery released Scrap Shield 2043 | -10/Subcaves | Visited triangular shrine 2051 | -10/Subcaves | Found Prototype Device 2051 | -10/Subcaves | Identified V3-11A's Pendant 2057 | -10/Subcaves | Befriended Subdweller 2184 | -10/Subcaves | Shifting Twisted Machinery released Flamer 2252 | -10/Subcaves | Discovered new exit (range 11) 2262 | -10/Subcaves | Core integrity fell below 20% 2325 | -10/Subcaves | Entered Recycling 2339 | -9/Recycling | Found Scrap Engine 2917 | -9/Recycling | Discovered new exit (range 12) 2970 | -9/Recycling | Entered Factory 2970 | -7/Factory | Evolved 6 slots: Power x1, Propulsion x1, Utility x3, Weapon x1 3032 | -7/Factory | Sucked down chute 3032 | -7/Factory | Entered Waste 3047 | -7/Waste | EMP discharged 3047 | -7/Waste | System corruption reached 10% 3049 | -7/Waste | Spotted C-40 Crusher 3071 | -7/Waste | Spotted C-40 Crusher 3072 | -7/Waste | Spotted C-40 Crusher 3112 | -7/Waste | Spotted C-40 Crusher 3127 | -7/Waste | Crushed by Compactor (1 part destroyed, 2 dropped) 3130 | -7/Waste | Crushed by Compactor (1 part destroyed, 2 dropped) 3147 | -7/Waste | EMP discharged 3150 | -7/Waste | Spotted C-40 Crusher 3177 | -7/Waste | Spotted C-40 Crusher 3180 | -7/Waste | Discovered new exit (range 16) 3195 | -7/Waste | Entered Factory 3620 | -7/Factory | Build established: Tank 3807 | -7/Factory | Cargo convoy interrupted 3884 | -7/Factory | Core integrity fell below 50% 3886 | -7/Factory | Self-destructed Last Messages --------------- 03859_ Slug penetrates Terminal. 03860_ H-55 Commando Lgt. Nuclear Core blasted off. 03862_ Wheel destroyed. 03862_ R-06 Scavenger collects V3-11A's Pendant. 03865_ M-28 Smith fits Backup Power III on H-55 Commando. 03867_ Acquired Lgt. Nuclear Core. 03868_ Penetrated by Slug. 03869_ Plasma Cannon destroyed. 03871_ Penetrated by Slug. 03871_ Lgt. Nuclear Core destroyed. 03872_ System corrupted: Substantial component data lost. 03874_ Destroyed Gravmag System. 03874_ Penetrated by Slug. 03876_ P-60 Hacker destroyed. 03876_ Slug penetrates Wall. 03878_ Acquired 17 matter. 03878_ U-05 Engineer builds a Wall. 03880_ Adv. Assault Cannon destroyed. 03881_ Imp. Heat Sink destroyed. 03883_ Penetrated by Slug. Map ----- +----------------------------------------------------+ | ?????????????????????????????????????????????????? | | ?????????????????????????????????????????????????? | | ?????????????????????????????????????????????????? | | ?????????????????????????????????????????????????? | | ?????????????????????????????????????????????????? | | ?????????????????????????????????????????????????? | | ?????????????????????????????????????????????????? | | ?????????????????????????????????????????????????? | | ?????????????????????????????????????????????????? | | ?????????????????????????????????????????????????? | | ?????????????????????????????????????????????????? | | ?????????????????????????????????????????????????? | | ??????????????? ????????????????????????????????? | | ???????????? ?????????????????????????????? | | ??????????# ?????????????????????????????? | | ??????????# ?????????????????????????????? | | ??????????# ?????????????????????????????? | | ??????????# ?????????????????????????????? | | ??????????# ?????????????????????????????? | | ??????????? ????????????????????????????? | | ??????????#? ????????????????????????????? | | ??????????# ???????????????????????????? | | ??????????? ???????????????????????????? | | ?????????????? ??????????????????????????? | | ????###########+#+%############ ????????? | | ?? ^^ %%%!%=%h@hh m ????????? | | ?? *%=[##############???????????????? | | ?? ^ %!=%* """ ?????????????????? | | ?? !!= [ #%""T"" ""??????????????????? | | ??? % #="" "" """?????????????????? | | ???#### # """ ????????????????? | | ??????# # #???????????????? | | ??????# % # """ """ ????????????????? | | ??????# " [+ """ ""??????????????????? | | ??????# "% # """ "???????????????????? | | ??????# % ????????????????? | | ??????# #???????????????? | | ?????? # #???????????????? | | ?????? =% #???????????????? | | ???????# =%*############+#???????????????? | | ???????# "%#????????????????????????????? | | ???????# "#????????????????????????????? | | ???????# #????????????????????????????? | | ???????# %=#????????????????????????????? | | ######## !] #########?????????????????????? | | # ]] #! * *#?????????????????????? | | ! # ]] + #?????????????????????? | | + ##### # #?????????????????????? | | # #?### #########?????????????????????? | | # #???# #?????????????????????????????? | +----------------------------------------------------+ Best States ------------- Heat Dissipation 62 Energy Generation 23 Energy Capacity 660 Matter Stores 300 Matter Capacity 300 Sight Range 16 Terrain Scan Density 10 Armor Coverage 225 Propulsion Shielding 33 Weapon Shielding 33 Evasion (%) 50 Targeting Accuracy 5 Item Schematics ----------------- Imp. Medium Armor Plating | -7/Factory | Scanalyzed Robot Schematics ------------------ None Fabricated ------------ Nothing Alien Tech Used ----------------- None Achievements -------------- None Challenges ------------ None Game ------ Seed SchematicAblativeRegenerator Manual? 0 Play Time 00:40:59 Cumulative 273.1 hours Start 2024.04.21 @ 19:00:19 End 2024.04.22 @ 07:30:05 Sessions 5 Manual Loads 0 Difficulty Rogue Special Mode None Game No. 212 Rogue 200 Adventurer 12 Explorer 0 Win Type - Total 1 Types 1/0/0/0/0/0/0/0/0 Lore% 33 Gallery% 51 Achievement% 37 Wizard Run 0 Options --------- Layout 1 ASCII 0 Keyboard 0 Movement Mouse Keybinds 0 Fullscreen 1 Font 32/SmallcapsGlow Map View 77x35 Zoom Use 0% Tactical HUD 1 Map Filters NONE Filters NONE Steam 1 RUN: b7902a5e-499c-4c2e-8ac6-abae0a44754d